fUSD/lending_fUSD_20240523
["ID","MTS","AMOUNT","RATE_DAILY","PERIOD"]
[327754407,1716432653919,-667.48,0.00022465,2]
[327754408,1716432653929,-500.0,0.00022465,2]
[327754409,1716432653939,-858.38,0.00022465,2]
[327754410,1716432653948,-500.0,0.00022465,2]
[327754411,1716432653959,-500.0,0.00022465,2]
[327754412,1716432653969,-500.0,0.00022465,2]
[327754413,1716432653979,-569.63,0.00022465,2]
[327754414,1716432653989,-297.80005791,0.00022465,2]
[327754415,1716432653998,-500.0,0.00022465,2]
[327754416,1716432654008,-500.0,0.00022465,2]
[327754417,1716432654017,-500.0,0.00022465,2]
[327754418,1716432654026,-500.0,0.00022465,2]
[327754419,1716432654035,-668.87,0.00022465,2]
[327754420,1716432654044,-1035.81,0.00022465,2]
[327754421,1716432654053,-500.0,0.00022465,2]
[327754422,1716432654062,-1426.39,0.00022465,2]
[327754423,1716432654072,-991.74,0.00022465,2]
[327754424,1716432654081,-500.0,0.00022465,2]
[327754425,1716432654090,-500.0,0.00022465,2]
[327754426,1716432654100,-500.0,0.00022465,2]
[327754427,1716432654109,-1283.32,0.00022465,2]
[327754428,1716432654119,-500.0,0.00022465,2]
[327754429,1716432654128,-500.0,0.00022465,2]
[327754430,1716432654137,-500.0,0.00022465,2]
[327754431,1716432654146,-2650.38,0.00022465,2]
[327754432,1716432654156,-719.97,0.00022465,2]
[327754433,1716432654165,-500.0,0.00022465,2]
[327754434,1716432654174,-3769.04,0.00022465,2]
[327754435,1716432654184,-796.14,0.00022465,2]
[327754436,1716432654193,-500.0,0.00022465,2]
[327754437,1716432654203,-500.0,0.00022465,2]
[327754438,1716432654212,-606.35,0.00022465,2]
[327754439,1716432654221,-500.0,0.00022465,2]
[327754440,1716432654230,-657.85,0.00022465,2]
[327754441,1716432654239,-500.0,0.00022465,2]
[327754442,1716432654248,-1868.32,0.00022465,2]
[327754443,1716432654258,-500.0,0.00022465,2]
[327754444,1716432654267,-667.33,0.00022465,2]
[327754445,1716432654276,-550.28,0.00022465,2]
[327754446,1716432654286,-500.0,0.00022465,2]
[327754447,1716432654295,-508.08,0.00022465,2]
[327754448,1716432654304,-500.0,0.00022465,2]
[327754449,1716432654313,-1164.2,0.00022465,2]
[327754450,1716432654323,-500.0,0.00022465,2]
[327754451,1716432654332,-705.51,0.00022465,2]
[327754452,1716432654341,-500.0,0.00022465,2]
[327754453,1716432654350,-500.0,0.00022465,2]
[327754454,1716432654360,-500.0,0.00022465,2]
[327754455,1716432654369,-500.0,0.00022465,2]
[327754456,1716432654378,-512.21,0.00022465,2]
[327754457,1716432654387,-500.0,0.00022465,2]
[327754458,1716432654397,-2362.28,0.00022465,2]
[327754459,1716432654406,-500.0,0.00022465,2]
[327754460,1716432654415,-500.0,0.00022465,2]
[327754461,1716432654425,-500.0,0.00022465,2]
[327754462,1716432654434,-776.78,0.00022465,2]
[327754463,1716432654443,-500.0,0.00022465,2]
[327754464,1716432654452,-500.0,0.00022465,2]
[327754465,1716432654462,-509.63,0.00022465,2]
[327754466,1716432654471,-794.05,0.00022465,2]
[327754467,1716432654480,-587.25695801,0.00022465,2]
[327754468,1716432654490,-500.0,0.00022465,2]
[327754469,1716432654499,-500.0,0.00022465,2]
[327754470,1716432654509,-521.29,0.00022465,2]
[327754471,1716432654521,-500.0,0.00022465,2]
[327754472,1716432654530,-809.18,0.00022465,2]
[327754473,1716432654539,-500.0,0.00022465,2]
[327754474,1716432654548,-1435.08,0.00022465,2]
[327754475,1716432654558,-521.0753941,0.00022465,2]
[327754476,1716432654568,-416.58731863,0.00022465,2]
[327754477,1716432654577,-625.57,0.00022465,2]
[327754478,1716432654587,-734.15,0.00022465,2]
[327754479,1716432654597,-1174.34,0.00022465,2]
[327754480,1716432654607,-652.81,0.00022465,2]
[327754481,1716432654616,-747.59,0.00022465,2]
[327754482,1716432654625,-500.0,0.00022465,2]
[327754483,1716432654634,-500.0,0.00022465,2]
[327754484,1716432654644,-288.63978485,0.00022465,2]
[327754485,1716432654653,-585.21,0.00022465,2]
[327754486,1716432654663,-500.0,0.00022465,2]
[327754487,1716432654672,-3383.27,0.00022465,2]
[327754488,1716432654681,-500.0,0.00022465,2]
[327754489,1716432654690,-500.0,0.00022465,2]
[327754490,1716432654699,-891.97,0.00022465,2]
[327754491,1716432654708,-809.95,0.00022465,2]
[327754492,1716432654717,-792.86,0.00022465,2]
[327754493,1716432654727,-888.74,0.00022465,2]
[327754494,1716432654737,-351.98,0.00022492,2]
[327754495,1716432654746,-351.98,0.00022492,2]
[327754496,1716432654755,-163.54,0.00022492,2]
[327754497,1716432654764,-351.98,0.00022492,2]
[327754498,1716432654774,-351.98,0.00022492,2]
[327754499,1716432654783,-163.54,0.00022492,2]
[327754500,1716432654792,-349.86,0.00022492,2]
[327754501,1716432654801,-351.59,0.00022492,2]
[327754502,1716432654810,-163.54,0.00022492,2]
[327754503,1716432654820,-163.54,0.00022492,2]
[327754504,1716432654829,-163.54,0.00022492,2]
[327754505,1716432654838,-163.54,0.00022492,2]
[327754506,1716432654847,-163.54,0.00022492,2]
[327754507,1716432654856,-163.33,0.00022492,2]
[327754508,1716432654865,-351.98,0.00022492,2]
[327754509,1716432654874,-351.98,0.00022492,2]
[327754510,1716432654883,-351.98,0.00022492,2]
[327754511,1716432654892,-351.98,0.00022492,2]
[327754512,1716432654901,-351.98,0.00022492,2]
[327754513,1716432654910,-165.093071,0.00022492,7]
[327754514,1716432654919,-447.72562252,0.00022494,2]
[327754515,1716432654928,-1621.06,0.000225,2]
[327754516,1716432654936,-150.0,0.000225,3]
[327754517,1716432654945,-447.72562252,0.00022512,2]
[327754518,1716432654954,-447.72562252,0.00022515,2]
[327754519,1716432654963,-160.118613,0.0002253,2]
[327754520,1716432654972,-524.28,0.00022543,2]
[327754521,1716432654981,-524.28,0.00022543,2]
[327754522,1716432654990,-643.71230742,0.00022572,2]
[327754523,1716432654999,-150.0,0.00022579,4]
[327754524,1716432655009,-1000.0,0.00022603,2]
[327754525,1716432655018,-5647.87856341,0.00022639,2]
[327754526,1716432655027,-924.80049645,0.00022639,2]
[327754527,1716432655036,-333.49233576,0.00022658,2]
[327754528,1716432655045,-154.03112156,0.00022675,2]
[327754529,1716432655054,-154.99328839,0.00022694,2]
[327754530,1716432655062,-263.19676114,0.00022712,4]
[327754531,1716432655071,-643.71230742,0.0002273,2]
[327754532,1716432655080,-152.9643382,0.00022733,2]
[327754533,1716432655089,-197.75911443,0.00022736,2]
[327754534,1716432655097,-19624.9327953,0.00022736,2]
[327754535,1716432655106,-484.25042854,0.00022739,2]
[327754536,1716432655117,-500.0,0.00022739,2]
[327754537,1716432655126,-500.0,0.00022739,2]
[327754538,1716432655136,-500.0,0.00022739,2]
[327754539,1716432655145,-500.0,0.00022739,2]
[327754540,1716432655154,-500.0,0.00022739,2]
[327754541,1716432655164,-500.0,0.00022739,2]
[327754542,1716432655174,-500.0,0.00022739,2]
[327754543,1716432655183,-500.0,0.00022739,2]
[327754544,1716432655192,-1288.33,0.00022739,2]
[327754545,1716432655202,-308.64368919,0.00022739,2]
[327754546,1716432655211,-500.0,0.00022739,2]
[327754547,1716432655221,-500.0,0.00022739,2]
[327754548,1716432655231,-500.0,0.00022739,2]
[327754549,1716432655240,-500.0,0.00022739,2]
[327754550,1716432655250,-500.0,0.00022739,2]
[327754551,1716432655260,-500.0,0.00022739,2]
[327754552,1716432655270,-1232.58,0.00022739,2]
[327754553,1716432655280,-500.0,0.00022739,2]
[327754554,1716432655290,-561.04301913,0.00022739,2]
[327754555,1716432655300,-708.02,0.00022739,2]
[327754556,1716432655310,-500.0,0.00022739,2]
[327754557,1716432655320,-1941.35,0.00022739,2]
[327754558,1716432655329,-500.0,0.00022739,2]
[327754559,1716432655340,-578.8,0.00022739,2]
[327754560,1716432655349,-500.0,0.00022739,2]
[327754561,1716432655359,-500.0,0.00022739,2]
[327754562,1716432655368,-549.84,0.00022739,2]
[327754563,1716432655378,-500.0,0.00022739,2]
[327754564,1716432655387,-500.0,0.00022739,2]
[327754565,1716432655398,-1949.84,0.00022739,2]
[327754566,1716432655408,-854.74,0.00022739,2]
[327754567,1716432655418,-330.00671957,0.00022739,2]
[327754568,1716432655428,-500.0,0.00022739,2]
[327754569,1716432655437,-683.02,0.00022739,2]
[327754570,1716432655447,-269.33326585,0.00022739,2]
[327754571,1716432655457,-500.0,0.00022739,2]
[327754572,1716432655467,-1713.52,0.00022739,2]
[327754573,1716432655476,-556.78333023,0.00022739,2]
[327754574,1716432655486,-500.0,0.00022739,2]
[327754575,1716432655496,-740.18,0.00022739,2]
[327754576,1716432655508,-500.0,0.00022739,2]
[327754577,1716432655520,-791.87,0.00022739,2]
[327754578,1716432655530,-512.39,0.00022739,2]
[327754579,1716432655540,-500.0,0.00022739,2]
[327754580,1716432655550,-500.0,0.00022739,2]
[327754581,1716432655560,-500.0,0.00022739,2]
[327754582,1716432655571,-500.0,0.00022739,2]
[327754583,1716432655581,-516.01688844,0.00022739,2]
[327754584,1716432655591,-500.0,0.00022739,2]
[327754585,1716432655603,-214.09779222,0.00022739,2]
[327754586,1716432655612,-500.0,0.00022739,2]
[327754587,1716432655622,-500.0,0.00022739,2]
[327754588,1716432655633,-559.16,0.00022739,2]
[327754589,1716432655643,-500.0,0.00022739,2]
[327754590,1716432655653,-500.0,0.00022739,2]
[327754591,1716432655663,-500.0,0.00022739,2]
[327754592,1716432655672,-500.0,0.00022739,2]
[327754593,1716432655682,-500.0,0.00022739,2]
[327754594,1716432655692,-500.0,0.00022739,2]
[327754595,1716432655702,-500.0,0.00022739,2]
[327754596,1716432655712,-500.0,0.00022739,2]
[327754597,1716432655721,-500.0,0.00022739,2]
[327754598,1716432655731,-636.15,0.00022739,2]
[327754599,1716432655741,-500.0,0.00022739,2]
[327754600,1716432655751,-881.15,0.00022739,2]
[327754601,1716432655762,-922.68,0.00022739,2]
[327754602,1716432655771,-500.0,0.00022739,2]
[327754603,1716432655781,-3262.56,0.00022739,2]
[327754604,1716432655791,-168.2896786,0.00022739,2]
[327754605,1716432655801,-788.42,0.00022739,2]
[327754606,1716432655811,-589.99,0.00022739,2]
[327754607,1716432655820,-500.0,0.00022739,2]
[327754608,1716432655829,-500.0,0.00022739,2]
[327754609,1716432655839,-500.0,0.00022739,2]
[327754610,1716432655848,-500.0,0.00022739,2]
[327754611,1716432655858,-500.0,0.00022739,2]
[327754612,1716432655868,-500.0,0.00022739,2]
[327754613,1716432655877,-500.0,0.00022739,2]
[327754614,1716432655887,-500.0,0.00022739,2]
[327754615,1716432655897,-254.77593032,0.00022739,2]
[327754616,1716432655907,-500.0,0.00022739,2]
[327754617,1716432655916,-500.0,0.00022739,2]
[327754618,1716432655925,-500.0,0.00022739,2]
[327754619,1716432655934,-159.85991257,0.00022739,2]
[327754620,1716432655943,-500.0,0.00022739,2]
[327754621,1716432655954,-500.0,0.00022739,2]
[327754622,1716432655964,-500.0,0.00022739,2]
[327754623,1716432655973,-500.0,0.00022739,2]
[327754624,1716432655983,-500.0,0.00022739,2]
[327754625,1716432655992,-500.0,0.00022739,2]
[327754626,1716432656002,-500.0,0.00022739,2]
[327754627,1716432656011,-500.0,0.00022739,2]
[327754628,1716432656021,-625.53179426,0.00022739,2]
[327754629,1716432656030,-500.0,0.00022739,2]
[327754630,1716432656039,-500.0,0.00022739,2]
[327754631,1716432656049,-500.0,0.00022739,2]
[327754632,1716432656058,-500.0,0.00022739,2]
[327754633,1716432656067,-663.29,0.00022739,2]
[327754634,1716432656077,-500.0,0.00022739,2]
[327754635,1716432656086,-827.51,0.00022739,2]
[327754636,1716432656095,-654.97,0.00022739,2]
[327754637,1716432656104,-500.0,0.00022739,2]
[327754638,1716432656113,-500.0,0.00022739,2]
[327754639,1716432656122,-500.0,0.00022739,2]
[327754640,1716432656131,-641.52,0.00022739,2]
[327754641,1716432656141,-500.0,0.00022739,2]
[327754642,1716432656150,-500.0,0.00022739,2]
[327754643,1716432656159,-500.0,0.00022739,2]
[327754644,1716432656168,-384.38151557,0.00022739,2]
[327754645,1716432656177,-500.0,0.00022739,2]
[327754646,1716432656186,-660.72,0.00022739,2]
[327754647,1716432656196,-579.29,0.00022739,2]
[327754648,1716432656206,-500.0,0.00022739,2]
[327754649,1716432656216,-590.2,0.00022739,2]
[327754650,1716432656225,-500.0,0.00022739,2]
[327754651,1716432656234,-500.0,0.00022739,2]
[327754652,1716432656243,-1606.22,0.00022739,2]
[327754653,1716432656253,-500.0,0.00022739,2]
[327754654,1716432656263,-500.0,0.00022739,2]
[327754655,1716432656273,-500.0,0.00022739,2]
[327754656,1716432656282,-500.0,0.00022739,2]
[327754657,1716432656291,-500.0,0.00022739,2]
[327754658,1716432656300,-295.29896363,0.00022739,2]
[327754659,1716432656310,-500.0,0.00022739,2]
[327754660,1716432656319,-500.0,0.00022739,2]
[327754661,1716432656329,-500.0,0.00022739,2]
[327754662,1716432656339,-500.0,0.00022739,2]
[327754663,1716432656357,-500.0,0.00022739,2]
[327754664,1716432656368,-500.0,0.00022739,2]
[327754665,1716432656379,-500.0,0.00022739,2]
[327754666,1716432656389,-500.0,0.00022739,2]
[327754667,1716432656399,-500.0,0.00022739,2]
[327754668,1716432656409,-500.0,0.00022739,2]
[327754669,1716432656419,-500.0,0.00022739,2]
[327754670,1716432656429,-500.0,0.00022739,2]
[327754671,1716432656439,-283.26962167,0.00022739,2]
[327754672,1716432656449,-500.0,0.00022739,2]
[327754673,1716432656459,-500.0,0.00022739,2]
[327754674,1716432656469,-500.0,0.00022739,2]
[327754675,1716432656479,-500.0,0.00022739,2]
[327754676,1716432656489,-500.0,0.00022739,2]
[327754677,1716432656499,-500.0,0.00022739,2]
[327754678,1716432656511,-500.0,0.00022739,2]
[327754679,1716432656525,-500.0,0.00022739,2]
[327754680,1716432656536,-500.0,0.00022739,2]
[327754681,1716432656547,-500.0,0.00022739,2]
[327754682,1716432656558,-500.0,0.00022739,2]
[327754683,1716432656569,-500.0,0.00022739,2]
[327754684,1716432656579,-500.0,0.00022739,2]
[327754685,1716432656589,-500.0,0.00022739,2]
[327754686,1716432656601,-500.0,0.00022739,2]
[327754687,1716432656611,-500.0,0.00022739,2]
[327754688,1716432656621,-500.0,0.00022739,2]
[327754689,1716432656632,-1524.72,0.00022739,2]
[327754690,1716432656641,-500.0,0.00022739,2]
[327754691,1716432656651,-500.0,0.00022739,2]
[327754692,1716432656662,-500.0,0.00022739,2]
[327754693,1716432656672,-500.0,0.00022739,2]
[327754694,1716432656682,-500.0,0.00022739,2]
[327754695,1716432656692,-589.95412002,0.00022739,2]
[327754696,1716432656703,-500.0,0.00022739,2]
[327754697,1716432656713,-262.56,0.00022739,2]
[327754698,1716432656723,-500.0,0.00022739,2]
[327754699,1716432656733,-500.0,0.00022739,2]
[327754700,1716432656743,-500.0,0.00022739,2]
[327754701,1716432656753,-500.0,0.00022739,2]
[327754702,1716432656764,-500.0,0.00022739,2]
[327754703,1716432656774,-500.0,0.00022739,2]
[327754704,1716432656784,-454.87392777,0.00022739,2]
[327754705,1716432656794,-500.0,0.00022739,2]
[327754706,1716432656804,-500.0,0.00022739,2]
[327754707,1716432656814,-500.0,0.00022739,2]
[327754708,1716432656824,-500.0,0.00022739,2]
[327754709,1716432656834,-500.0,0.00022739,2]
[327754710,1716432656843,-500.0,0.00022739,2]
[327754711,1716432656853,-500.0,0.00022739,2]
[327754712,1716432656863,-500.0,0.00022739,2]
[327754713,1716432656872,-500.0,0.00022739,2]
[327754714,1716432656882,-500.0,0.00022739,2]
[327754715,1716432656892,-500.0,0.00022739,2]
[327754716,1716432656902,-500.0,0.00022739,2]
[327754717,1716432656912,-500.0,0.00022739,2]
[327754718,1716432656922,-500.0,0.00022739,2]
[327754719,1716432656932,-500.0,0.00022739,2]
[327754720,1716432656942,-542.49084843,0.00022739,2]
[327754721,1716432656951,-500.0,0.00022739,2]
[327754722,1716432656961,-500.0,0.00022739,2]
[327754723,1716432656971,-500.0,0.00022739,2]
[327754724,1716432656980,-500.0,0.00022739,2]
[327754725,1716432656990,-927.84,0.00022739,2]
[327754726,1716432657000,-642.52,0.00022739,2]
[327754727,1716432657011,-500.0,0.00022739,2]
[327754728,1716432657020,-817.98,0.00022739,2]
[327754729,1716432657030,-500.0,0.00022739,2]
[327754730,1716432657040,-500.0,0.00022739,2]
[327754731,1716432657050,-500.0,0.00022739,2]
[327754732,1716432657059,-500.0,0.00022739,2]
[327754733,1716432657069,-552.96482482,0.00022739,2]
[327754734,1716432657079,-552.1,0.00022739,2]
[327754735,1716432657089,-1577.19,0.00022739,2]
[327754736,1716432657098,-500.0,0.00022739,2]
[327754737,1716432657108,-487.36,0.00022739,2]
[327754738,1716432657118,-500.0,0.00022739,2]
[327754739,1716432657127,-424.84185013,0.00022739,2]
[327754740,1716432657137,-500.0,0.00022739,2]
[327754741,1716432657146,-500.0,0.00022739,2]
[327754742,1716432657156,-500.0,0.00022739,2]
[327754743,1716432657166,-616.78095835,0.00022739,2]
[327754744,1716432657176,-1189.63,0.00022739,2]
[327754745,1716432657186,-706.04,0.00022739,2]
[327754746,1716432657196,-500.0,0.00022739,2]
[327754747,1716432657205,-1375.34,0.00022739,2]
[327754748,1716432657215,-681.11,0.00022739,2]
[327754749,1716432657225,-500.0,0.00022739,2]
[327754750,1716432657234,-2368.11,0.00022739,2]
[327754751,1716432657244,-545.65,0.00022739,2]
[327754752,1716432657253,-500.0,0.00022739,2]
[327754753,1716432657264,-553.59,0.00022739,2]
[327754754,1716432657274,-500.0,0.00022739,2]
[327754755,1716432657284,-500.0,0.00022739,2]
[327754756,1716432657294,-603.91,0.00022739,2]
[327754757,1716432657304,-850.66,0.00022739,2]
[327754758,1716432657314,-1474.23,0.00022739,2]
[327754759,1716432657323,-500.0,0.00022739,2]
[327754760,1716432657333,-9892.35,0.00022739,2]
[327754761,1716432657343,-631.25,0.00022739,2]
[327754762,1716432657353,-1819.25,0.00022739,2]
[327754763,1716432657364,-500.0,0.00022739,2]
[327754764,1716432657374,-500.0,0.00022739,2]
[327754765,1716432657384,-500.0,0.00022739,2]
[327754766,1716432657394,-510.74,0.00022739,2]
[327754767,1716432657404,-500.0,0.00022739,2]
[327754768,1716432657416,-500.0,0.00022739,2]
[327754769,1716432657682,-500.0,0.00022739,2]
[327754770,1716432657692,-500.0,0.00022739,2]
[327754771,1716432657702,-500.0,0.00022739,2]
[327754772,1716432657711,-242.54489464,0.00022739,2]
[327754773,1716432657720,-507.14,0.00022739,2]
[327754774,1716432657730,-755.13,0.00022739,2]
[327754775,1716432657739,-3419.56,0.00022739,2]
[327754776,1716432657749,-500.0,0.00022739,2]
[327754777,1716432657759,-202.00526567,0.00022739,2]
[327754778,1716432657770,-644.53,0.00022739,2]
[327754779,1716432657780,-500.0,0.00022739,2]
[327754780,1716432657790,-618.49,0.00022739,2]
[327754781,1716432657800,-500.0,0.00022739,2]
[327754782,1716432657810,-639.58,0.00022739,2]
[327754783,1716432657819,-5605.18,0.00022739,2]
[327754784,1716432657829,-500.0,0.00022739,2]
[327754785,1716432657840,-3848.47,0.00022739,2]
[327754786,1716432657849,-500.0,0.00022739,2]
[327754787,1716432657859,-500.0,0.00022739,2]
[327754788,1716432657868,-500.0,0.00022739,2]
[327754789,1716432657878,-500.0,0.00022739,2]
[327754790,1716432657888,-500.0,0.00022739,2]
[327754791,1716432657898,-500.0,0.00022739,2]
[327754792,1716432657907,-972.37,0.00022739,2]
[327754793,1716432657917,-500.0,0.00022739,2]
[327754794,1716432657927,-552.38,0.00022739,2]
[327754795,1716432657937,-500.0,0.00022739,2]
[327754796,1716432657947,-705.43,0.00022739,2]
[327754797,1716432657957,-4365.07,0.00022739,2]
[327754798,1716432657967,-500.0,0.00022739,2]
[327754799,1716432657977,-500.0,0.00022739,2]
[327754800,1716432657987,-494.78878576,0.00022739,2]
[327754801,1716432657997,-1949.72,0.00022739,2]
[327754802,1716432658007,-625.06264958,0.00022739,2]
[327754803,1716432658017,-500.0,0.00022739,2]
[327754804,1716432658027,-500.0,0.00022739,2]
[327754805,1716432658036,-500.0,0.00022739,2]
[327754806,1716432658046,-500.0,0.00022739,2]
[327754807,1716432658055,-500.0,0.00022739,2]
[327754808,1716432658066,-836.28,0.00022739,2]
[327754809,1716432658076,-1217.93,0.00022739,2]
[327754810,1716432658085,-500.0,0.00022739,2]
[327754811,1716432658095,-500.0,0.00022739,2]
[327754812,1716432658105,-500.0,0.00022739,2]
[327754813,1716432658116,-651.01,0.00022739,2]
[327754814,1716432658126,-500.0,0.00022739,2]
[327754815,1716432658136,-500.0,0.00022739,2]
[327754816,1716432658145,-818.52,0.00022739,2]
[327754817,1716432658155,-500.0,0.00022739,2]
[327754818,1716432658165,-500.0,0.00022739,2]
[327754819,1716432658175,-500.0,0.00022739,2]
[327754820,1716432658185,-860.87,0.00022739,2]
[327754821,1716432658194,-462.68161818,0.00022739,2]
[327754822,1716432658204,-500.0,0.00022739,2]
[327754823,1716432658215,-1049.77,0.00022739,2]
[327754824,1716432658225,-667.48,0.00022739,2]
[327754825,1716432658234,-500.0,0.00022739,2]
[327754826,1716432658244,-858.38,0.00022739,2]
[327754827,1716432658253,-500.0,0.00022739,2]
[327754828,1716432658263,-500.0,0.00022739,2]
[327754829,1716432658273,-500.0,0.00022739,2]
[327754830,1716432658283,-569.63,0.00022739,2]
[327754831,1716432658292,-500.0,0.00022739,2]
[327754832,1716432658302,-500.0,0.00022739,2]
[327754833,1716432658312,-500.0,0.00022739,2]
[327754834,1716432658322,-500.0,0.00022739,2]
[327754835,1716432658331,-668.87,0.00022739,2]
[327754836,1716432658340,-1035.81,0.00022739,2]
[327754837,1716432658350,-497.08742916,0.00022739,2]
[327754838,1716432658360,-1426.39,0.00022739,2]
[327754839,1716432658369,-500.0,0.00022739,2]
[327754840,1716432658379,-991.74,0.00022739,2]
[327754841,1716432658389,-500.0,0.00022739,2]
[327754842,1716432658399,-500.0,0.00022739,2]
[327754843,1716432658408,-1283.32,0.00022739,2]
[327754844,1716432658418,-500.0,0.00022739,2]
[327754845,1716432658427,-500.0,0.00022739,2]
[327754846,1716432658437,-500.0,0.00022739,2]
[327754847,1716432658447,-2650.38,0.00022739,2]
[327754848,1716432658456,-719.97,0.00022739,2]
[327754849,1716432658467,-500.0,0.00022739,2]
[327754850,1716432658477,-3769.04,0.00022739,2]
[327754851,1716432658487,-796.14,0.00022739,2]
[327754852,1716432658496,-500.0,0.00022739,2]
[327754853,1716432658506,-500.0,0.00022739,2]
[327754854,1716432658523,-606.35,0.00022739,2]
[327754855,1716432658533,-301.38975892,0.00022739,2]
[327754856,1716432658543,-657.85,0.00022739,2]
[327754857,1716432658552,-500.0,0.00022739,2]
[327754858,1716432658563,-1868.32,0.00022739,2]
[327754859,1716432658572,-480.78041042,0.00022739,2]
[327754860,1716432658581,-667.33,0.00022739,2]
[327754861,1716432658593,-550.28,0.00022739,2]
[327754862,1716432658602,-500.0,0.00022739,2]
[327754863,1716432658612,-508.08,0.00022739,2]
[327754864,1716432658621,-500.0,0.00022739,2]
[327754865,1716432658631,-1164.2,0.00022739,2]
[327754866,1716432658641,-500.0,0.00022739,2]
[327754867,1716432658651,-705.51,0.00022739,2]
[327754868,1716432658661,-500.0,0.00022739,2]
[327754869,1716432658670,-500.0,0.00022739,2]
[327754870,1716432658680,-500.0,0.00022739,2]
[327754871,1716432658690,-500.0,0.00022739,2]
[327754872,1716432658699,-512.21,0.00022739,2]
[327754873,1716432658708,-500.0,0.00022739,2]
[327754874,1716432658718,-2362.28,0.00022739,2]
[327754875,1716432658727,-500.0,0.00022739,2]
[327754876,1716432658738,-500.0,0.00022739,2]
[327754877,1716432658748,-394.9009581,0.00022739,2]
[327754878,1716432658758,-776.78,0.00022739,2]
[327754879,1716432658767,-524.31784017,0.00022739,2]
[327754880,1716432658777,-500.0,0.00022739,2]
[327754881,1716432658787,-794.05,0.00022739,2]
[327754882,1716432658797,-500.0,0.00022739,2]
[327754883,1716432658807,-509.63,0.00022739,2]
[327754884,1716432658817,-500.0,0.00022739,2]
[327754885,1716432658827,-521.29,0.00022739,2]
[327754886,1716432658837,-500.0,0.00022739,2]
[327754887,1716432658847,-809.18,0.00022739,2]
[327754888,1716432658856,-500.0,0.00022739,2]
[327754889,1716432658866,-1435.08,0.00022739,2]
[327754890,1716432658876,-625.57,0.00022739,2]
[327754891,1716432658886,-734.15,0.00022739,2]
[327754892,1716432658896,-1174.34,0.00022739,2]
[327754893,1716432658906,-652.81,0.00022739,2]
[327754894,1716432658915,-747.59,0.00022739,2]
[327754895,1716432658925,-500.0,0.00022739,2]
[327754896,1716432658934,-500.0,0.00022739,2]
[327754897,1716432658944,-585.21,0.00022739,2]
[327754898,1716432658953,-500.0,0.00022739,2]
[327754899,1716432658963,-3383.27,0.00022739,2]
[327754900,1716432658972,-500.0,0.00022739,2]
[327754901,1716432658982,-500.0,0.00022739,2]
[327754902,1716432658991,-891.97,0.00022739,2]
[327754903,1716432659000,-809.95,0.00022739,2]
[327754904,1716432659010,-792.86,0.00022739,2]
[327754905,1716432659021,-888.74,0.00022739,2]
[327754906,1716432659031,-227.0,0.0002276,2]